[Event "5th Ordu Open 2019"]
[Site "Ordu"]
[Date "2019.04.30"]
[Round "3.12"]
[White "Sevgi, Volkan"]
[Black "Acar, Utku Cengiz"]
[Result "1/2-1/2"]
[ECO "B26"]
[WhiteElo "2309"]
[BlackElo "2086"]
[Annotator "NA"]
[PlyCount "61"]
[EventDate "2019.04.29"]
[EventType "swiss"]
[EventCountry "TUR"]
[SourceTitle "playchess.com"]
[Source "ChessBase"]
[SourceQuality "1"]
[TimeControl "5400+30"]

1. e4 {[%emt 0:02:30]} c5 {[%emt 0:01:30]} 2. Nc3 {[%emt 0:00:00]} Nc6 {[%emt 0:02:30]} 3. g3 {[%emt 0:00:00]} g6 {[%emt 0:00:30]} 4. Bg2 {[%emt 0:00:30]} Bg7 {[%emt 0:00:30]} 5. d3 {[%emt 0:00:00]} d6 {[%emt 0:02:30]} 6. Be3 {[%emt 0:00:00]} Nf6 {[%emt 0:01:30]} 7. h3 {[%emt 0:00:00]} Rb8 {[%emt 0:00:30]} 8. f4 {[%emt 0:01:00]} O-O {[%emt 0:05:30]} 9. Nge2 {[%emt 0:00:00]} Nd7 {[%emt 0:06:30]} 10. O-O {[%emt 0:00:00]} b5 {[%emt 0:02:30]} 11. Qd2 {[%emt 0:00:30]} b4 {[%emt 0:01:30]} 12. Nd1 $11 {[%emt 0:00:00]} a5 {[%emt 0:01:30]} 13. f5 {[%emt 0:03:00]} Nce5 {[%emt 0:06:30]} 14. Bh6 {[%emt 0:02:30]} c4 {[%emt 0:11:30]} 15. Bxg7 {[%emt 0:01:30]} Kxg7 {[%emt 0:00:00]} 16. d4 {[%emt 0:01:30]} c3 {[%emt 0:01:00]} 17. bxc3 {[%emt 0:00:30]} Nc4 {[%emt 0:00:00]} 18. Qg5 {[%emt 0:12:30]} f6 {[%emt 0:10:00]} 19. Qc1 {[%emt 0:00:30]} g5 {[%emt 0:01:30]} 20. h4 {[%emt 0:10:30]} h6 {[%emt 0:00:30]} 21. g4 {[%emt 0:01:30]} Qb6 {[%emt 0:03:30]} 22. cxb4 {[%emt 0:17:30]} axb4 {[%emt 0:04:30]} 23. c3 {[%emt 0:13:30]} Ba6 {[%emt 0:08:30]} 24. Rb1 {[%emt 0:12:36]} Qa5 {[%emt 0:08:29]} 25. cxb4 {[%emt 0:03:25]} Rxb4 {[%emt 0:00:17]} 26. Rxb4 {[%emt 0:00:34]} Qxb4 {[%emt 0:00:02]} 27. Ndc3 {[%emt 0:00:51]} Ndb6 {[%emt 0:01:28]} 28. Rf3 {[%emt 0:13:33]} Rc8 {[%emt 0:01:19]} 29. Qb1 {[%emt 0:01:30]} Qa5 {[%emt 0:01:21]} 30. Qe1 {[%emt 0:00:23]} Nb2 {[%emt 0:02:39]} 31. Qg3 {[%emt 0:01:40]} 1/2-1/2

[Event "5th Ordu Open 2019"]
[Site "Ordu"]
[Date "2019.04.30"]
[Round "3.13"]
[White "Aytekin, Murat Eren"]
[Black "Kilic, Efe Mert"]
[Result "0-1"]
[ECO "A34"]
[WhiteElo "2134"]
[BlackElo "2248"]
[Annotator "NA"]
[PlyCount "72"]
[EventDate "2019.04.29"]
[EventType "swiss"]
[EventCountry "TUR"]
[SourceTitle "playchess.com"]
[Source "ChessBase"]
[SourceQuality "1"]
[TimeControl "5400+30"]

1. d4 {[%emt 0:00:30]} Nf6 {[%emt 0:02:30]} 2. c4 {[%emt 0:00:00]} g6 {[%emt 0:00:00]} 3. Nc3 {[%emt 0:01:00]} Bg7 {[%emt 0:02:00]} 4. Nf3 {[%emt 0:01:30]} O-O {[%emt 0:00:00]} 5. g3 {[%emt 0:01:30]} d5 {[%emt 0:02:00]} 6. cxd5 {[%emt 0:07:30]} Nxd5 {[%emt 0:00:30]} 7. Bg2 {[%emt 0:02:30]} c5 $11 {[%emt 0:06:30]} 8. O-O {[%emt 0:14:30]} cxd4 {[%emt 0:06:30]} 9. Nxd5 {[%emt 0:07:30]} Qxd5 {[%emt 0:00:30]} 10. Be3 {[%emt 0:02:30]} d3 {[%emt 0:22:30]} 11. Ne1 {[%emt 0:05:30]} Qb5 {[%emt 0:11:30]} 12. Nxd3 {[%emt 0:02:30]} Nc6 {[%emt 0:00:30]} 13. Rc1 {[%emt 0:06:30]} Rd8 {[%emt 0:21:58]} 14. a4 {[%emt 0:06:30]} Qh5 {[%emt 0:01:55]} 15. Qe1 {[%emt 0:08:30]} Nd4 {[%emt 0:08:10]} 16. Bxd4 {[%emt 0:06:30]} Rxd4 {[%emt 0:02:17]} 17. Rc7 {[%emt 0:07:54]} Bf6 {[%emt 0:00:48]} 18. a5 {[%emt 0:01:15]} Qb5 {[%emt 0:01:18]} 19. b4 {[%emt 0:03:57]} Rb8 {[%emt 0:00:41]} 20. Qc1 {[%emt 0:06:03]} Bf5 {[%emt 0:03:03]} 21. Qc5 {[%emt 0:01:47]} Qxc5 {[%emt 0:01:05]} 22. Nxc5 {[%emt 0:00:44]} Rxb4 {[%emt 0:00:54]} 23. Nxb7 {[%emt 0:00:50]} Ra4 {[%emt 0:02:22]} 24. Rd1 {[%emt 0:01:12]} Ra2 {[%emt 0:00:42]} 25. e4 {[%emt 0:01:19]} Bg4 {[%emt 0:00:30]} 26. f3 {[%emt 0:00:00]} Be6 {[%emt 0:00:13]} 27. f4 {[%emt 0:01:09]} Bg4 {[%emt 0:00:12]} 28. Rdc1 {[%emt 0:02:00]} Bb2 {[%emt 0:00:59]} 29. Re1 {[%emt 0:00:45]} e5 {[%emt 0:00:47]} 30. h3 {[%emt 0:00:23]} Be6 {[%emt 0:01:15]} 31. Kh1 {[%emt 0:00:20]} Bd4 {[%emt 0:00:00]} 32. Rf1 {[%emt 0:00:34]} Bc8 {[%emt 0:00:37]} 33. Nd6 {[%emt 0:00:51]} Ba6 {[%emt 0:00:30]} 34. Rfc1 {[%emt 0:00:30]} Rbb2 {[%emt 0:00:30]} 35. Nxf7 {[%emt 0:00:30]} Rxg2 {[%emt 0:00:30]} 36. Nh6+ {[%emt 0:00:30]} Kf8 {[%emt 0:00:17]} 0-1

[Event "5th Ordu Open 2019"]
[Site "Ordu"]
[Date "2019.04.30"]
[Round "3.14"]
[White "Rzayev, Askar Aliakbar"]
[Black "Isik, Alparslan"]
[Result "0-1"]
[ECO "D04"]
[WhiteElo "2085"]
[BlackElo "2233"]
[Annotator "NA"]
[PlyCount "162"]
[EventDate "2019.04.29"]
[EventType "swiss"]
[EventCountry "TUR"]
[SourceTitle "playchess.com"]
[Source "ChessBase"]
[SourceQuality "1"]
[TimeControl "5400+30"]

1. d4 {[%emt 0:06:30]} Nf6 {[%emt 0:00:30]} 2. Nf3 {[%emt 0:00:30]} g6 {[%emt 0:00:30]} 3. b3 {[%emt 0:00:30]} Bg7 {[%emt 0:00:30]} 4. Bb2 {[%emt 0:00:00]} d5 {[%emt 0:00:30]} 5. e3 {[%emt 0:00:00]} O-O {[%emt 0:00:30]} 6. Be2 {[%emt 0:00:30]} c5 {[%emt 0:00:30]} 7. O-O {[%emt 0:00:30]} cxd4 {[%emt 0:00:30]} 8. Nxd4 {[%emt 0:03:30]} e5 {[%emt 0:08:30]} 9. Nf3 {[%emt 0:01:30]} e4 {[%emt 0:00:30]} 10. Nd4 {[%emt 0:00:30]} Nbd7 {[%emt 0:01:30]} 11. Nd2 $11 {[%emt 0:01:30]} Ne5 {[%emt 0:01:30]} 12. h3 {[%emt 0:01:30]} b6 {[%emt 0:07:30]} 13. c4 {[%emt 0:05:30]} Re8 {[%emt 0:05:30]} 14. cxd5 {[%emt 0:16:30]} Qxd5 {[%emt 0:02:30]} 15. Nc4 {[%emt 0:01:30]} Nd3 {[%emt 0:09:30]} 16. Bxd3 {[%emt 0:03:30]} exd3 {[%emt 0:00:30]} 17. Qxd3 {[%emt 0:00:30]} Bb7 {[%emt 0:01:30]} 18. f3 {[%emt 0:00:30]} Rad8 {[%emt 0:05:30]} 19. Rfd1 {[%emt 0:06:30]} Qg5 {[%emt 0:02:30]} 20. e4 {[%emt 0:11:30]} Nxe4 {[%emt 0:03:30]} 21. Qe3 {[%emt 0:23:24]} Qxe3+ {[%emt 0:22:30]} 22. Nxe3 {[%emt 0:00:06]} Nd6 {[%emt 0:00:30]} 23. Kf2 {[%emt 0:01:00]} Rd7 {[%emt 0:03:30]} 24. Rab1 {[%emt 0:02:30]} Rde7 {[%emt 0:03:07]} 25. Ndc2 {[%emt 0:00:24]} Nb5 {[%emt 0:04:14]} 26. Bxg7 {[%emt 0:00:44]} Kxg7 {[%emt 0:00:30]} 27. Rd3 {[%emt 0:00:30]} Nc7 {[%emt 0:00:30]} 28. Rbd1 {[%emt 0:00:33]} Bc8 {[%emt 0:03:26]} 29. Rd8 {[%emt 0:02:04]} Ne6 {[%emt 0:03:29]} 30. Rxe8 {[%emt 0:00:37]} Rxe8 {[%emt 0:00:30]} 31. Nd4 {[%emt 0:00:30]} Nxd4 {[%emt 0:00:00]} 32. Rxd4 {[%emt 0:00:00]} Be6 {[%emt 0:00:00]} 33. Rd2 {[%emt 0:01:48]} Rc8 {[%emt 0:00:38]} 34. Rc2 {[%emt 0:00:36]} Kf6 {[%emt 0:01:51]} 35. Rxc8 {[%emt 0:00:35]} Bxc8 {[%emt 0:00:00]} 36. f4 {[%emt 0:00:32]} Ke6 {[%emt 0:03:20]} 37. Ke2 {[%emt 0:01:04]} h6 {[%emt 0:02:02]} 38. h4 {[%emt 0:00:30]} Ba6+ 39. Kd2 {[%emt 0:00:07]} f6 {[%emt 0:01:16]} 40. Kc3 {[%emt 0:00:29]} Be2 {[%emt 0:01:20]} 41. Kd4 {[%emt 0:00:46]} Kd6 {[%emt 0:00:21]} 42. g3 {[%emt 0:01:24]} Bf3 {[%emt 0:00:37]} 43. b4 {[%emt 0:00:30]} Kc6 {[%emt 0:00:30]} 44. Kc3 {[%emt 0:00:30]} Kb5 {[%emt 0:00:30]} 45. Kb3 {[%emt 0:00:30]} Be2 {[%emt 0:00:30]} 46. a3 {[%emt 0:00:30]} a5 {[%emt 0:00:30]} 47. bxa5 {[%emt 0:00:30]} bxa5 {[%emt 0:00:30]} 48. Kc3 {[%emt 0:00:30]} Kc5 {[%emt 0:00:30]} 49. Kd2 {[%emt 0:00:30]} Bf3 {[%emt 0:00:30]} 50. Kc3 {[%emt 0:03:15]} Be2 {[%emt 0:02:26]} 51. Kd2 {[%emt 0:00:49]} Bf3 {[%emt 0:00:30]} 52. Kc3 {[%emt 0:00:00]} h5 {[%emt 0:00:32]} 53. Nc4 {[%emt 0:01:46]} Kd5 {[%emt 0:00:14]} 54. Nxa5 {[%emt 0:02:37]} Ke4 {[%emt 0:00:30]} 55. Nc4 {[%emt 0:00:30]} Bg2 {[%emt 0:00:36]} 56. Kd2 {[%emt 0:01:07]} Kf3 {[%emt 0:00:05]} 57. f5 {[%emt 0:00:57]} gxf5 {[%emt 0:00:30]} 58. Nd6 {[%emt 0:00:30]} Kg4 {[%emt 0:00:30]} 59. Ke3 {[%emt 0:00:30]} Kxg3 {[%emt 0:00:30]} 60. Nxf5+ {[%emt 0:00:30]} Kg4 {[%emt 0:00:30]} 61. Nd4 {[%emt 0:00:30]} f5 {[%emt 0:00:30]} 62. Ne2 {[%emt 0:00:30]} Bc6 {[%emt 0:00:42]} 63. Nd4 {[%emt 0:00:17]} f4+ {[%emt 0:00:49]} 64. Kf2 {[%emt 0:00:08]} Bb7 {[%emt 0:00:18]} 65. Ne2 {[%emt 0:00:50]} Bc6 {[%emt 0:00:04]} 66. Nd4 {[%emt 0:00:16]} Bd7 {[%emt 0:00:21]} 67. Ne2 {[%emt 0:00:09]} Be8 {[%emt 0:00:27]} 68. Ng1 {[%emt 0:00:40]} Bb5 {[%emt 0:01:14]} 69. Nf3 {[%emt 0:00:19]} Ba4 {[%emt 0:00:47]} 70. Nd4 {[%emt 0:00:16]} Bd7 {[%emt 0:01:03]} 71. Nf3 {[%emt 0:00:30]} Be8 {[%emt 0:00:00]} 72. Nd4 {[%emt 0:00:00]} Bf7 {[%emt 0:00:26]} 73. Ne2 {[%emt 0:00:45]} Bb3 {[%emt 0:00:15]} 74. Nd4 {[%emt 0:00:28]} Bc4 {[%emt 0:00:39]} 75. Ne2 {[%emt 0:00:34]} Ba6 {[%emt 0:00:47]} 76. a4 {[%emt 0:00:09]} Bc8 {[%emt 0:01:06]} 77. a5 {[%emt 0:00:12]} Bb7 {[%emt 0:00:00]} 78. Ng1 {[%emt 0:02:28]} f3 {[%emt 0:00:41]} 79. a6 {[%emt 0:00:36]} Ba8 {[%emt 0:00:01]} 80. a7 {[%emt 0:00:33]} Bb7 {[%emt 0:00:05]} 81. Kf1 {[%emt 0:00:33]} Kg3 {[%emt 0:00:24]} 0-1

[Event "5th Ordu Open 2019"]
[Site "Ordu"]
[Date "2019.04.30"]
[Round "3.15"]
[White "Kizilkus, Akin"]
[Black "Hamidi, Amir Mohammad"]
[Result "1/2-1/2"]
[ECO "E46"]
[WhiteElo "2018"]
[BlackElo "2217"]
[Annotator "NA"]
[PlyCount "114"]
[EventDate "2019.04.29"]
[EventType "swiss"]
[EventCountry "TUR"]
[SourceTitle "playchess.com"]
[Source "ChessBase"]
[SourceQuality "1"]
[TimeControl "5400+30"]

1. d4 {[%emt 0:00:30]} Nf6 {[%emt 0:03:30]} 2. c4 {[%emt 0:00:30]} e6 {[%emt 0:00:30]} 3. Nc3 {[%emt 0:00:30]} Bb4 {[%emt 0:00:30]} 4. e3 {[%emt 0:00:00]} O-O {[%emt 0:00:00]} 5. Nge2 {[%emt 0:00:00]} d5 {[%emt 0:00:00]} 6. a3 {[%emt 0:00:00]} Be7 {[%emt 0:00:30]} 7. cxd5 {[%emt 0:00:00]} exd5 {[%emt 0:00:00]} 8. Nf4 {[%emt 0:00:00]} a5 {[%emt 0:00:00]} 9. Bd3 {[%emt 0:00:00]} b6 {[%emt 0:02:30]} 10. O-O {[%emt 0:01:30]} Bb7 {[%emt 0:00:00]} 11. f3 $11 {[%emt 0:10:30]} c5 {[%emt 0:02:00]} 12. Bc2 {[%emt 0:11:30]} Bd6 {[%emt 0:10:30]} 13. Nd3 {[%emt 0:06:30]} Re8 {[%emt 0:02:30]} 14. Nb5 {[%emt 0:02:30]} Bf8 {[%emt 0:00:30]} 15. Ne5 {[%emt 0:04:30]} Nbd7 {[%emt 0:04:30]} 16. f4 {[%emt 0:05:30]} Ne4 {[%emt 0:08:30]} 17. Nc3 {[%emt 0:06:30]} Ndf6 {[%emt 0:06:30]} 18. Bd2 {[%emt 0:04:30]} cxd4 {[%emt 0:06:30]} 19. exd4 {[%emt 0:00:30]} Rc8 {[%emt 0:01:30]} 20. Rc1 {[%emt 0:06:30]} Nxc3 {[%emt 0:02:30]} 21. Bxc3 {[%emt 0:01:30]} Ne4 {[%emt 0:00:00]} 22. Be1 {[%emt 0:17:30]} f6 {[%emt 0:06:00]} 23. Ng4 {[%emt 0:02:38]} Qd7 {[%emt 0:06:30]} 24. Ne3 {[%emt 0:02:36]} f5 {[%emt 0:01:30]} 25. Bh4 {[%emt 0:02:43]} g6 {[%emt 0:01:30]} 26. g4 {[%emt 0:01:18]} Bg7 {[%emt 0:04:30]} 27. gxf5 {[%emt 0:00:43]} gxf5 {[%emt 0:00:00]} 28. Kh1 {[%emt 0:01:18]} Qf7 {[%emt 0:00:00]} 29. Rg1 {[%emt 0:00:53]} Kh8 {[%emt 0:00:30]} 30. Rg2 {[%emt 0:05:46]} Rg8 {[%emt 0:02:30]} 31. Qd3 {[%emt 0:01:30]} Bh6 {[%emt 0:01:30]} 32. Rf1 {[%emt 0:00:39]} Qh5 {[%emt 0:02:30]} 33. Bg5 {[%emt 0:01:05]} Bxg5 {[%emt 0:03:30]} 34. fxg5 {[%emt 0:00:30]} Rxg5 {[%emt 0:00:30]} 35. Rxg5 {[%emt 0:00:00]} Qxg5 {[%emt 0:00:00]} 36. Nxf5 {[%emt 0:02:02]} Rf8 {[%emt 0:00:00]} 37. Ng3 {[%emt 0:01:19]} Rf4 {[%emt 0:04:30]} 38. Rf3 {[%emt 0:01:41]} Qg4 {[%emt 0:06:14]} 39. Kg2 {[%emt 0:00:38]} h5 {[%emt 0:03:49]} 40. Rxf4 {[%emt 0:00:30]} Qxf4 {[%emt 0:00:31]} 41. Qf3 {[%emt 0:00:31]} Qd2+ {[%emt 0:00:46]} 42. Qe2 {[%emt 0:00:18]} h4 {[%emt 0:01:25]} 43. Qxd2 {[%emt 0:00:30]} Nxd2 {[%emt 0:00:30]} 44. Nf5 {[%emt 0:00:30]} Nc4 {[%emt 0:00:30]} 45. Bb3 {[%emt 0:00:30]} Nxb2 {[%emt 0:00:30]} 46. Nxh4 {[%emt 0:00:30]} a4 {[%emt 0:00:30]} 47. Ba2 {[%emt 0:00:30]} Nc4 {[%emt 0:00:30]} 48. Ng6+ {[%emt 0:00:30]} Kg7 {[%emt 0:00:30]} 49. Nf4 {[%emt 0:00:30]} Nxa3 {[%emt 0:00:30]} 50. Bxd5 {[%emt 0:00:30]} Bxd5+ {[%emt 0:00:30]} 51. Nxd5 {[%emt 0:00:30]} Nc4 {[%emt 0:00:30]} 52. Kf2 {[%emt 0:00:00]} b5 {[%emt 0:02:54]} 53. Ke2 {[%emt 0:00:25]} Nb6 {[%emt 0:01:07]} 54. Nb4 {[%emt 0:01:01]} a3 {[%emt 0:00:45]} 55. Kd2 {[%emt 0:00:11]} Nd5 {[%emt 0:00:30]} 56. Na2 {[%emt 0:00:00]} b4 {[%emt 0:00:42]} 57. Kc2 {[%emt 0:00:00]} Kf6 {[%emt 0:00:44]} 1/2-1/2

[Event "5th Ordu Open 2019"]
[Site "Ordu"]
[Date "2019.04.30"]
[Round "3.17"]
[White "Alinasab, Mobina"]
[Black "Hajiyev, Shahin"]
[Result "1-0"]
[ECO "C03"]
[WhiteElo "2215"]
[BlackElo "1972"]
[Annotator "NA"]
[PlyCount "57"]
[EventDate "2019.04.29"]
[EventType "swiss"]
[EventCountry "TUR"]
[SourceTitle "playchess.com"]
[Source "ChessBase"]
[SourceQuality "1"]
[TimeControl "5400+30"]

1. e4 {[%emt 0:03:30]} e6 {[%emt 0:00:30]} 2. d4 {[%emt 0:00:30]} d5 {[%emt 0:00:00]} 3. Nd2 {[%emt 0:00:00]} Be7 {[%emt 0:00:00]} 4. Ngf3 {[%emt 0:00:00]} Nf6 {[%emt 0:00:30]} 5. e5 {[%emt 0:00:00]} Nfd7 {[%emt 0:00:30]} 6. Bd3 {[%emt 0:00:00]} b6 {[%emt 0:00:00]} 7. Qe2 {[%emt 0:02:30]} a5 {[%emt 0:01:00]} 8. O-O {[%emt 0:00:30]} Ba6 {[%emt 0:00:00]} 9. Bxa6 {[%emt 0:00:30]} Nxa6 $14 {[%emt 0:03:00]} 10. Ne1 {[%emt 0:02:30]} c5 {[%emt 0:07:30]} 11. c3 {[%emt 0:01:30]} Qc7 {[%emt 0:10:30]} 12. f4 {[%emt 0:00:30]} g6 {[%emt 0:00:00]} 13. c4 {[%emt 0:10:30]} Qc6 {[%emt 0:05:00]} 14. dxc5 {[%emt 0:03:30]} Naxc5 15. Nef3 {[%emt 0:05:30]} O-O {[%emt 0:08:00]} 16. Nd4 {[%emt 0:00:30]} Qb7 {[%emt 0:00:30]} 17. cxd5 {[%emt 0:02:30]} Qxd5 {[%emt 0:01:30]} 18. N2f3 {[%emt 0:00:30]} Ne4 {[%emt 0:03:30]} 19. Rd1 {[%emt 0:02:30]} Qb7 {[%emt 0:03:30]} 20. Qb5 {[%emt 0:02:30]} Bc5 {[%emt 0:09:30]} 21. Be3 {[%emt 0:01:30]} Rfd8 {[%emt 0:04:30]} 22. Rac1 {[%emt 0:59:30]} Rac8 {[%emt 0:41:30]} 23. a3 {[%emt 0:00:00]} Bxd4 {[%emt 0:00:00]} 24. Nxd4 {[%emt 0:00:00]} Nb8 {[%emt 0:00:00]} 25. Rxc8 {[%emt 0:00:00]} Rxc8 {[%emt 0:00:00]} 26. Nf3 {[%emt 0:00:00]} Rc6 {[%emt 0:00:00]} 27. Rd8+ {[%emt 0:00:00]} Kg7 {[%emt 0:00:00]} 28. Rxb8 {[%emt 0:00:00]} Qd7 {[%emt 0:00:00]} 29. Rxb6 {[%emt 0:00:00]} 1-0

[Event "5th Ordu Open 2019"]
[Site "Ordu"]
[Date "2019.04.30"]
[Round "3.18"]
[White "Yasin, Hur"]
[Black "Uzunoglu, Efe Kerem"]
[Result "0-1"]
[ECO "B76"]
[WhiteElo "1959"]
[BlackElo "2106"]
[Annotator "NA"]
[PlyCount "92"]
[EventDate "2019.04.29"]
[EventType "swiss"]
[EventCountry "TUR"]
[SourceTitle "playchess.com"]
[Source "ChessBase"]
[SourceQuality "1"]
[TimeControl "5400+30"]

1. e4 {[%emt 0:03:30]} c5 {[%emt 0:00:30]} 2. Nf3 {[%emt 0:00:00]} d6 {[%emt 0:00:30]} 3. d4 {[%emt 0:00:00]} Nf6 {[%emt 0:00:30]} 4. Nc3 {[%emt 0:00:30]} cxd4 {[%emt 0:00:30]} 5. Nxd4 {[%emt 0:00:00]} g6 {[%emt 0:00:00]} 6. f3 {[%emt 0:01:00]} Bg7 {[%emt 0:00:00]} 7. Be3 {[%emt 0:00:00]} O-O {[%emt 0:00:30]} 8. Qd2 {[%emt 0:00:00]} Nc6 {[%emt 0:00:00]} 9. O-O-O {[%emt 0:00:00]} Nxd4 {[%emt 0:01:00]} 10. Bxd4 {[%emt 0:00:00]} Be6 {[%emt 0:00:30]} 11. g4 {[%emt 0:00:30]} Qa5 {[%emt 0:02:30]} 12. a3 {[%emt 0:00:30]} Rfc8 {[%emt 0:05:30]} 13. h4 {[%emt 0:00:30]} Rab8 {[%emt 0:12:30]} 14. h5 {[%emt 0:05:30]} b5 {[%emt 0:07:30]} 15. hxg6 {[%emt 0:00:30]} hxg6 {[%emt 0:04:30]} 16. g5 {[%emt 0:01:30]} Nh5 {[%emt 0:02:30]} 17. Bxg7 {[%emt 0:01:30]} Kxg7 {[%emt 0:00:30]} 18. Nd5 {[%emt 0:21:30]} Qxd2+ {[%emt 0:02:30]} 19. Rxd2 {[%emt 0:00:30]} Bxd5 {[%emt 0:02:30]} 20. Rxd5 {[%emt 0:03:30]} a6 {[%emt 0:01:30]} 21. Rh4 {[%emt 0:01:30]} Rc5 {[%emt 0:09:30]} 22. Rxc5 {[%emt 0:10:30]} dxc5 {[%emt 0:00:30]} 23. b3 {[%emt 0:00:30]} e5 {[%emt 0:01:30]} 24. Rh2 {[%emt 0:01:30]} Nf4 {[%emt 0:01:30]} 25. a4 {[%emt 0:03:30]} bxa4 {[%emt 0:06:30]} 26. bxa4 {[%emt 0:00:00]} Rb4 {[%emt 0:00:30]} 27. a5 {[%emt 0:02:00]} Ra4 {[%emt 0:00:30]} 28. Bxa6 {[%emt 0:00:00]} Rxa5 {[%emt 0:00:30]} 29. Bc8 {[%emt 0:00:00]} Ra3 {[%emt 0:12:30]} 30. Bg4 {[%emt 0:01:30]} c4 {[%emt 0:02:30]} 31. Kd2 {[%emt 0:01:30]} c3+ {[%emt 0:00:30]} 32. Ke3 {[%emt 0:03:30]} Ra1 {[%emt 0:00:00]} 33. Kf2 {[%emt 0:01:30]} Rd1 {[%emt 0:01:00]} 34. Ke3 {[%emt 0:09:30]} Re1+ {[%emt 0:03:30]} 35. Kf2 {[%emt 0:00:30]} Re2+ {[%emt 0:00:30]} 36. Kg3 {[%emt 0:04:30]} Rd2 {[%emt 0:00:30]} 37. Rf2 {[%emt 0:01:30]} Ne2+ {[%emt 0:02:45]} 38. Kh4 {[%emt 0:00:30]} Nd4 {[%emt 0:01:09]} 39. Kg3 {[%emt 0:04:50]} Nxc2 {[%emt 0:01:35]} 40. Rf1 {[%emt 0:07:17]} Nd4 {[%emt 0:01:15]} 41. f4 {[%emt 0:00:39]} Rd3+ {[%emt 0:02:53]} 42. Kh4 {[%emt 0:01:04]} exf4 {[%emt 0:00:08]} 43. Bd1 {[%emt 0:04:31]} c2 {[%emt 0:01:00]} 44. Bxc2 {[%emt 0:00:25]} Nxc2 {[%emt 0:00:00]} 45. Rxf4 {[%emt 0:00:30]} Nd4 {[%emt 0:00:05]} 46. Kg4 {[%emt 0:01:11]} Ne6 {[%emt 0:00:13]} 0-1

[Event "5th Ordu Open 2019"]
[Site "Ordu"]
[Date "2019.04.30"]
[Round "3.19"]
[White "Unat, Can Haktan"]
[Black "Alumert, Orkun Efe"]
[Result "1-0"]
[ECO "D00"]
[WhiteElo "2110"]
[BlackElo "2045"]
[Annotator "NA"]
[PlyCount "67"]
[EventDate "2019.04.29"]
[EventType "swiss"]
[EventCountry "TUR"]
[SourceTitle "playchess.com"]
[Source "ChessBase"]
[SourceQuality "1"]
[TimeControl "5400+30"]

1. d4 {[%emt 0:00:30]} Nf6 {[%emt 0:00:30]} 2. Nc3 {[%emt 0:01:30]} d5 {[%emt 0:00:30]} 3. Bf4 {[%emt 0:00:00]} g6 {[%emt 0:00:30]} 4. e3 {[%emt 0:00:00]} c6 {[%emt 0:02:30]} 5. h4 {[%emt 0:00:30]} h5 {[%emt 0:01:30]} 6. Nf3 {[%emt 0:00:00]} Bf5 {[%emt 0:00:30]} 7. Ne5 {[%emt 0:02:00]} Nbd7 {[%emt 0:05:30]} 8. Bd3 {[%emt 0:00:30]} e6 {[%emt 0:03:30]} 9. Qe2 {[%emt 0:04:30]} Bg7 {[%emt 0:01:30]} 10. f3 {[%emt 0:04:30]} Nxe5 {[%emt 0:02:30]} 11. Bxe5 {[%emt 0:00:30]} Bxd3 {[%emt 0:06:30]} 12. cxd3 {[%emt 0:01:30]} Kf8 {[%emt 0:04:30]} 13. O-O-O {[%emt 0:08:30]} Ne8 {[%emt 0:00:30]} 14. Qf2 {[%emt 0:01:30]} Bxe5 {[%emt 0:01:30]} 15. dxe5 {[%emt 0:00:30]} Qa5 {[%emt 0:01:30]} 16. e4 {[%emt 0:02:30]} Rd8 {[%emt 0:02:30]} 17. d4 {[%emt 0:01:30]} Ke7 {[%emt 0:04:30]} 18. Kb1 {[%emt 0:05:30]} Kd7 {[%emt 0:01:30]} 19. Rc1 {[%emt 0:02:30]} b6 {[%emt 0:11:30]} 20. Rc2 {[%emt 0:00:30]} Rc8 {[%emt 0:00:30]} 21. Rhc1 {[%emt 0:01:30]} Rc7 {[%emt 0:03:30]} 22. Qe2 {[%emt 0:02:30]} Qb4 {[%emt 0:02:30]} 23. Qd3 {[%emt 0:02:30]} Qe7 {[%emt 0:01:30]} 24. g3 {[%emt 0:01:30]} Qd8 {[%emt 0:03:30]} 25. a3 {[%emt 0:10:30]} f5 {[%emt 0:09:30]} 26. Na2 {[%emt 0:01:30]} a5 {[%emt 0:06:30]} 27. Nc3 {[%emt 0:01:30]} Qb8 {[%emt 0:01:30]} 28. Ne2 {[%emt 0:02:30]} Rh7 {[%emt 0:01:30]} 29. Nf4 {[%emt 0:00:30]} Rg7 {[%emt 0:00:32]} 30. exd5 {[%emt 0:03:30]} exd5 {[%emt 0:04:43]} 31. e6+ {[%emt 0:05:30]} Kd6 {[%emt 0:01:03]} 32. Qe3 {[%emt 0:00:30]} Qc8 {[%emt 0:00:42]} 33. Qe5+ {[%emt 0:00:30]} Ke7 {[%emt 0:00:30]} 34. Nxd5+ {[%emt 0:00:00]} 1-0